Cogmind - Beta 12 @@@ ROGUE MODE // 2023.03.04 @ 15:58:42 Player: guru jr Result: Destroyed by D-53 Grenadier with Mini Grenade Launcher Performance ------------- Evolutions (0) 0 Regions Visited (2) 400 Robots Destroyed (23) 115 Value Destroyed (291) 291 Prototype IDs (2) 40 Alien Tech Used (0) 0 Bonus (0) 0 TOTAL SCORE: 846 Bonus ------- None Cogmind --------- Core Integrity 0/250 Matter 300/300 Energy 249/250 System Corruption 0% Temperature Cool (0) Movement Rolling (110) Ox2 Location -10/Mines Parts ------- > --- POWER (1) -------- Ion Engine > --- PROPULSION (2) --- Wheel > --- UTILITY (2) ------ Large Storage Unit Hacking Suite > --- WEAPON (2) ------- Small Laser > --- INVENTORY (15) --- Light Ion Engine Light Nuclear Core Aluminum Leg Wheel Wheel Wheel High-capacity Matter Pod (200) Sensor Array Improved Terrain Scanner Targeting Computer Assault Rifle Light Assault Rifle Light Assault Rifle Light Assault Rifle Mining Laser Peak State ------------ > --- POWER ------------ Ion Engine > --- PROPULSION ------- Wheel Wheel > --- UTILITY ---------- Large Storage Unit Hacking Suite > --- WEAPON ----------- Small Laser Small Laser > --- INVENTORY -------- Light Ion Engine Light Nuclear Core Aluminum Leg Wheel Wheel Sensor Array Improved Terrain Scanner Assault Rifle Light Assault Rifle Mining Laser [Rating: 10] Favorites ----------- Power Ion Engine Engine Ion Engine Propulsion Wheel Wheel Wheel Utility Large Storage Unit Storage Large Storage Unit Hackware Hacking Suite Weapon Small Laser Energy Gun Small Laser Build | -11 -10 -10 ------- Run | Jun Mat Min Slots Evolved . | . . . Power . | . . . Propulsion . | . . . Utility . | . . . Weapon . | . . . Parts Attached 14 | 6 8 . Power 2 | 1 1 . Engine 2 | 1 1 . Core . | . . . Reactor . | . . . Propulsion 6 | 2 4 . Treads . | . . . Leg . | . . . Wheel 6 | 2 4 . Hover . | . . . Flight . | . . . Utility 4 | 1 3 . Device . | . . . Storage 3 | 1 2 . Processor . | . . . Hackware 1 | . 1 . Protection . | . . . Artifact . | . . . Weapon 2 | 2 . . Energy Gun 2 | 2 . . Energy Cannon . | . . . Ballistic Gun . | . . . Ballistic Cannon . | . . . Launcher . | . . . Special Weapon . | . . . Impact Weapon . | . . . Slashing Weapon . | . . . Piercing Weapon . | . . . Special Melee Weapon . | . . . Unidentified Prototypes . | . . . Parts Lost 3 | . 1 2 Power . | . . . Propulsion 2 | . 1 1 Utility . | . . . Weapon 1 | . . 1 Highest Loss Streak 2 | . 1 2 To Critical Strikes . | . . . Average Slot Usage (%) 93 | . 91 100 Engine 12 | . 12 14 Wheel 26 | . 26 28 Storage 17 | . 17 14 Hackware 6 | . 4 14 Energy Gun 28 | . 28 28 Naked Turns . | . . . Heaviest Build 37 | 12 37 27 Greatest Support 20 | 20 20 20 Greatest Overweight (x) 3 | 3 2 2 Average Overweight (x) . | . . 1 Largest Inventory Capacity 15 | 8 15 15 Average Capacity 12 | 7 12 15 Most Carried 15 | 6 14 15 Average Carried 9 | 2 9 13 Final Capacity 15 | 8 15 15 Final Carried 15 | 5 12 15 Class Distribution -------------------- 100% | Mutant Dominant Class ---------------- Mutant | -10/Materials Mutant | -10/Mines Resources | -11 -10 -10 ----------- Run | Jun Mat Min Matter Collected 340 | 260 60 20 Remotely . | . . . Salvage Created 591 | 136 363 92 Parts 49 | 20 25 4 Haulers Intercepted 1 | . 1 . Recyclers Shooed . | . . . Parts Field Recycled . | . . . Retrieved Matter . | . . . Parts Self-Destructed . | . . . Prevented . | . . . Kills | -11 -10 -10 ------- Run | Jun Mat Min Combat Hostiles Destroyed 12 | . 10 2 Guns 12 | . 10 2 Classes Destroyed 7 | 2 4 1 Worker 3 | 2 1 . Tunneler 5 | 5 . . Hauler 1 | . 1 . Recycler 1 | . . 1 Operator 1 | . 1 . Swarmer 8 | . 6 2 Grunt 4 | . 4 . Best Kill Streak 7 | 7 3 3 Combat Bots Only 3 | . 3 2 Max Kills in Single Turn 1 | 1 1 1 Gunslinging . | . . . Exploded . | . . . Melee . | . . . Uniques/NPCs Destroyed . | . . . Combat | -11 -10 -10 -------- Run | Jun Mat Min Damage Taken 743 | . 453 290 Core 265 | . 157 108 Absorbed by Shields . | . . . Regen/Repaired (Parts) 81 | . 81 . Core Remaining (%) 100 | 100 . . Volleys Fired 64 | 16 41 7 Largest 2 | 2 2 2 Hottest 80 | 80 80 80 Shots Fired 128 | 32 82 14 Gun 128 | 32 82 14 Cannon . | . . . Launcher . | . . . Special . | . . . Kinetic . | . . . Thermal 128 | 32 82 14 Explosive . | . . . Electromagnetic . | . . . Robot Hit Streak 15 | 5 15 5 Robot Miss Streak 5 | 5 4 3 Penetration Max . | . . . Secondary Targets . | . . . Shots Hit Robots 78 | 13 57 8 Core Hits 31 | 7 20 4 Critical Kills . | . . . Critical Parts Destroyed . | . . . Critical Strikes . | . . . Melee Attacks . | . . . Impact . | . . . Slashing . | . . . Piercing . | . . . Sneak Attacks . | . . . Combat Hostiles . | . . . Follow-up Attacks . | . . . Damage Inflicted 890 | 141 651 98 Guns 890 | 141 651 98 Cannons . | . . . Explosions . | . . . Melee . | . . . Ramming . | . . . Kinetic . | . . . Thermal 890 | 141 651 98 Explosive . | . . . Electromagnetic . | . . . Impact . | . . . Slashing . | . . . Piercing . | . . . Highest Corruption . | . . . Average Corruption . | . . . Corruption Purged . | . . . Corruption Blocked . | . . . Overload Shots . | . . . Overflow Damage . | . . . Projectiles . | . . . Explosions . | . . . Melee . | . . . Knockbacks . | . . . Impact . | . . . Kinetic . | . . . Secondary . | . . . Self-Inflicted Damage . | . . . Shots . | . . . Rammed . | . . . Targets Rammed . | . . . Kicked . | . . . Crushed . | . . . Highest Temperature 327 | 72 327 126 Average Temperature 92 | 23 120 63 Received Heat Transfer 174 | . 174 . Effects 1 | . 1 . Energy Bleed 1 | . 1 . Siege Activations . | . . . Robots Corrupted . | . . . Combat Hostiles . | . . . Parts Fried . | . . . Impact Corruptions . | . . . Robots Melted . | . . . Combat Hostiles . | . . . Parts Melted 6 | . 4 2 Heat Transferred 1950 | 325 1425 200 Parts Sabotaged . | . . . Parts Stolen . | . . . Parts Stripped . | . . . Power Chain Reactions . | . . . Missiles Intercepted . | . . . Alert | -11 -10 -10 ------- Run | Jun Mat Min Peak Influence 276 | 35 276 117 Initial 47 | . 22 47 Average 102 | 11 135 68 Maximum Alert Level 1 | . 1 . Low Security (%) 89 | 100 83 100 Level 1 10 | . 16 . Level 2 . | . . . Level 3 . | . . . Level 4 . | . . . Level 5 . | . . . High Security . | . . . Max Security . | . . . Squads Dispatched . | . . . Investigation . | . . . Extermination . | . . . Reinforcement . | . . . Assault . | . . . Garrison . | . . . Intercept . | . . . Searches Triggered . | . . . Construction Impeded . | . . . Haulers Reinforced . | . . . Active Scanning Responses . | . . . Cargo Convoy Interrupts . | . . . Stealth | -11 -10 -10 --------- Run | Jun Mat Min Distress Signals 1 | . . 1 Communications Jammed . | . . . Distress Signals . | . . . Times Spotted 17 | . 12 5 Peak Tracking Total 3 | . 3 3 Tactical Retreats 2 | . 1 1 Traps | -11 -10 -10 ------- Run | Jun Mat Min Traps Triggered . | . . . Indirectly . | . . . Trap Hack Attempts . | . . . Triggered . | . . . Disarmed . | . . . Reprogrammed . | . . . Reused . | . . . Traps Extracted . | . . . Installed . | . . . Triggered . | . . . Machines | -11 -10 -10 ---------- Run | Jun Mat Min Machines Disabled . | . . . Max in Single Turn . | . . . Machines Repaired . | . . . Machines Sabotaged . | . . . Overloaded Fab Kills . | . . . Hacking | -11 -10 -10 --------- Run | Jun Mat Min Machines Accessed 5 | . 5 . Terminals 4 | . 4 . Fabricators . | . . . Repair Stations 1 | . 1 . Recycling Units . | . . . Scanalyzers . | . . . Garrison Access . | . . . Total Hacks 16 | . 16 . Successful 8 | . 8 . Failed 7 | . 7 . Catastrophic . | . . . Database Lockouts 1 | . 1 . Manual 5 | . 5 . Terminals 12 | . 12 . Fabricators . | . . . Repair Stations 4 | . 4 . Recycling Units . | . . . Scanalyzers . | . . . Garrison Access . | . . . Terminal Hacks 4 | . 4 . Robot Analysis 2 | . 2 . Prototype ID Bank 1 | . 1 . Branch Access Points 1 | . 1 . Fabricator Hacks . | . . . Repair Station Hacks 4 | . 4 . Scan Component 2 | . 2 . Repair 2 | . 2 . Recycling Unit Hacks . | . . . Scanalyzer . | . . . Garrison Access Hacks . | . . . Unauthorized Hacks . | . . . Terminals . | . . . Fabricators . | . . . Repair Stations . | . . . Recycling Units . | . . . Scanalyzers . | . . . Garrison Access . | . . . Data Cores Recovered 1 | . 1 . Used . | . . . Hacking Detections 5 | . 5 . Full Trace Events . | . . . Feedback Events . | . . . Feedback Blocked . | . . . Robot Schematics Acquired . | . . . Robots Built . | . . . Authchips . | . . . Time . | . . . Total Robot Build Rating . | . . . Part Schematics Acquired . | . . . Parts Built . | . . . Authchips . | . . . Time . | . . . Total Part Build Rating . | . . . Parts Repaired 2 | . 2 . Time 52 | . 52 . Parts Recycled . | . . . Recycled Matter . | . . . Retrieved Matter . | . . . Retrieved Components . | . . . Parts Scanalyzed . | . . . Part Schematics Acquired . | . . . Parts Damaged . | . . . Bothacking | -11 -10 -10 ------------ Run | Jun Mat Min Used RIF Installer . | . . . Robots Hacked . | . . . Non-combat . | . . . Combat . | . . . Robot Hacks Applied . | . . . Relay Couplers Released . | . . . Fabnet Peak Effective % . | . . . Robots Rewired . | . . . Allies Hacked . | . . . Hacks Repelled . | . . . Allies | -11 -10 -10 -------- Run | Jun Mat Min Total Allies 2 | . . 2 Largest Group 2 | . . 2 Highest-Rated Group 41 | . . 41 Highest-Rated Ally 31 | . . 31 Total Orders . | . . . Ally Attacks 4 | . . 4 Total Damage 43 | . . 43 Kills . | . . . Allies Corrupted . | . . . Allies Melted . | . . . Intel | -11 -10 -10 ------- Run | Jun Mat Min Robot Analysis Total 2 | . 2 . Derelict Logs Recovered . | . . . Drone Launches . | . . . Drone Recoveries . | . . . Exploration | -11 -10 -10 ------------- Run | Jun Mat Min Turns Passed 943 | 158 616 169 Spaces Moved 676 | 98 428 150 Core 15 | 15 . . Treads . | . . . Legs . | . . . Wheels 661 | 83 428 150 Hover . | . . . Flight . | . . . Fastest Speed 50 | 50 80 95 Average Speed 90 | 92 88 95 Slowest Speed 200 | 200 110 110 Overloaded Moves . | . . . Propulsion Burnouts . | . . . Robots Hopped . | . . . Cave-ins Triggered . | . . . Exploration Rate (%) 25 | 4 50 23 Regions Visited 2 Branch Regions 1 Pre-discovered Areas . | . . . Known Exits Taken 1 | . 1 . Unknown Exits Taken 1 | 1 . . Scrap Searched . | . . . Spaces Dug . | . . . Terrain Destroyed . | . . . Melee . | . . . Projectile . | . . . AOE . | . . . Terrain Rammed . | . . . Walls Destroyed . | . . . Machines Disabled . | . . . Actions | -11 -10 -10 --------- Run | Jun Mat Min Total 879 | 134 582 163 Wait 89 | . 88 1 Move 674 | 97 427 150 Hop . | . . . Pick Up 31 | 13 14 4 Fast Attach 1 | . 1 . Attach 12 | 6 6 . Detach . | . . . Swap 1 | . 1 . Drop 7 | 2 4 1 Fire 64 | 16 41 7 Melee . | . . . Ram . | . . . Kick . | . . . Crush . | . . . Escape Stasis . | . . . Rewire . | . . . Trap . | . . . Miscellaneous . | . . . Route ------- -11/Junkyard -10/Materials -10/Mines (discovered 1 exit: [*Mat]) History --------- Turn | Location | Event 23 | -11/Junkyard | Discovered new exit (range 16) 159 | -11/Junkyard | Entered Materials 302 | -10/Materials | Build established: Mutant 345 | -10/Materials | Identified exit to Mines 353 | -10/Materials | Central database locked down 559 | -10/Materials | Repaired Ion Engine 588 | -10/Materials | Repaired Wheel 666 | -10/Materials | Core integrity fell below 50% 775 | -10/Materials | Entered Mines 831 | -10/Mines | Discovered new exit (range 6) 919 | -10/Mines | Assembled infested the area 941 | -10/Mines | Core integrity fell below 20% 944 | -10/Mines | Destroyed by D-53 Grenadier with Mini Grenade Launcher Last Messages --------------- GC-N2A(g): "I have the funny feeling that things are about to get a lot worse around here, see you around!" GC-N2A(g) slips back into the shadows. A-02 Transporter destroyed. S-10 Pest destroyed. R-06 Scavenger collects Lgt. Assault Rifle. Lgt. Ion Engine melted. Lgt. Assault Rifle melted. S-10 Pest destroyed. R-06 Scavenger collects Flight Unit. R-06 Scavenger destroyed. Acquired Lgt. Assault Rifle. R-06 Scavenger collects Flight Unit. A pair of derelicts emerge from the shadows: "We're, um, lost. You wouldn't happen to know the way out of here, would you?" ALERT: Infestation in the mines, dispatching Demolisher response squad. C-30 ARC bursts open, deploying its payload. D-53 Grenadier unfolds itself. Sml. Laser destroyed. Wheel destroyed. Map ----- +----------------------------------------------------+ | ?????????????????####### ???? | | ?????????????????# ???????? | | ?????????????????# ! !! #??????????? | | ?????????#######?# ! ! #????????#?? | | ?????????# ### !!!! #????????^?? | | ?????????# !!!! #??????? #?? | | ?????????# ## #??????? #?? | | ?????????# ### ####??????? #?? | | ?????????# #?## #???????### ## | | ?????????# #??### ########## | | ?????????# #????###### ## | | ?????????# #####?????# # ### | | ?????????# #?????# """ #### #?? | | ?????????#### #?????# """ #????#?? | | ????????????# #?????# """ #??????? | | ????????????# #?????# #??????? | | ????????????# #?????# #####??????? | | ????????????# #?????# #??????????? | | ??????????### ##????# #??????????? | | ?????????## ##???# #??????????? | | ?????????# ###?# #??????????? | | ??????##### #?# #??????????? | | ??????#k #### #??????????? | | ??????#! d #??????????? | | ??????# ! d % % #??????????? | | ?????## @ % ######??????????? | | ????## ###???????????????? | | ??### ##?????????????????? | | ?## ##??????????????????? | | ?# ## # ####???????????????????? | | ?# ##### #??????????????????????? | | ?## ##???# #??????????????????????? | | ??# ##????# #??????????????????????? | | ??# ####### #??????????????????????? | | ??# #??????????????????????? | | ??# #########??????????????????????? | | ??# #??????????????????????????????? | | ??# #??????????????????????????????? | | ??# #??????????????????????????????? | | ??# #??????????????????????????????? | | ??# #??????????????????????????????? | | ??# ##?????????????????????????????? | | ?## ##????????????????????????????? | | ?# ####?????????????????????????? | | ?# #?????????????????????????? | | ?## < #????????????????????????? | | ??## #????????????????????????? | | ???## ##????????????????????????? | | ????######?????????????????????????? | | ???????????????????????????????????? | +----------------------------------------------------+ Best States ------------- Heat Dissipation 25 Energy Generation 10 Energy Capacity 250 Matter Stores 300 Matter Capacity 300 Sight Range 16 Terrain Scan Density 10 Evasion (%) 50 Offensive Hacking 10 Item Schematics ----------------- None Robot Schematics ------------------ None Fabricated ------------ Nothing Alien Tech Used ----------------- None Achievements -------------- None Challenges ------------ None Game ------ Seed AuthchipLegGun Manual? 0 Play Time 00:14:39 Cumulative 37.0 hours Start 2023.03.04 @ 15:45:11 End 2023.03.04 @ 15:58:42 Sessions 1 Manual Loads 0 Difficulty Rogue Special Mode None Game No. 32 Rogue 32 Adventurer 0 Explorer 0 Win Type - Total 1 Types 1/0/0/0/0/0/0/0/0 Lore% 35 Gallery% 28 Achievement% 29 Wizard Run 0 Options --------- ASCII 0 Keyboard 0 Movement Mouse Keybinds 0 Fullscreen 2 Font 18/SmallcapsGlow Map View 76x50 Tactical HUD 0 Map Filters NONE Filters NONE Steam 1 RUN: 56dff07d-a8e5-4697-b5d2-1225e54e9c27